Cogmind - Beta 15 @@@ ROGUE MODE // 2025.05.31 @ 13:28:02 Player: Demo Result: Destroyed by S-27 Virus with Autogun Performance ------------- Evolutions (0) 0 Regions Visited (4) 800 Robots Destroyed (23) 115 Value Destroyed (503) 503 Prototype IDs (0) 0 Alien Tech Used (0) 0 Bonus (0) 0 TOTAL SCORE: 1418 Bonus ------- None Cogmind --------- Core Integrity 0/250 Matter 281/300 Energy 50/100 System Corruption 1% Temperature Warm (180) Movement Core (50) Location -7/Recycling Parts ------- > --- POWER (1) -------- (None) > --- PROPULSION (2) --- (None) > --- UTILITY (2) ------ (None) > --- WEAPON (2) ------- (None) > --- INVENTORY (5) ---- (None) Peak State ------------ > --- POWER ------------ Subdweller Power Source > --- PROPULSION ------- Spiked Treads Wheel > --- UTILITY ---------- Large Storage Unit Structural Scanner > --- WEAPON ----------- Subdweller Beam Cannon Battle Cannon > --- INVENTORY -------- SUBCON Basin [Rating: 29] Favorites ----------- Power Subdweller Power Source Engine Subdweller Power Source Propulsion Light Treads Treads Light Treads Wheel Wheel Utility Large Storage Unit Device Improved Terrain Scanner Storage Large Storage Unit Protection Light Armor Plating Weapon Bore Cannon Energy Gun Subdweller Laser Energy Cannon Subdweller Beam Cannon Ballistic Gun Light Assault Rifle Ballistic Cannon Bore Cannon Launcher Grenade Launcher Build | -11 -10 -10 -10 -7 ------- Run | Yrd Mat Min Sub Rec Slots Evolved . | . . . . . Power . | . . . . . Propulsion . | . . . . . Utility . | . . . . . Weapon . | . . . . . Parts Attached 26 | 5 . 5 16 . Power 2 | . . . 2 . Engine 2 | . . . 2 . Core . | . . . . . Reactor . | . . . . . Propulsion 7 | 2 . 1 4 . Treads 3 | 2 . . 1 . Leg . | . . . . . Wheel 4 | . . 1 3 . Hover . | . . . . . Flight . | . . . . . Utility 6 | 1 . 2 3 . Device 2 | 1 . 1 . . Storage 1 | . . 1 . . Processor . | . . . . . Hackware . | . . . . . Protection 3 | . . . 3 . Artifact . | . . . . . Weapon 11 | 2 . 2 7 . Energy Gun 3 | . . . 3 . Energy Cannon 1 | . . . 1 . Ballistic Gun 3 | 2 . 1 . . Ballistic Cannon 2 | . . . 2 . Launcher 2 | . . 1 1 . Special Weapon . | . . . . . Impact Weapon . | . . . . . Slashing Weapon . | . . . . . Piercing Weapon . | . . . . . Special Melee Weapon . | . . . . . Unidentified Prototypes . | . . . . . Parts Lost 6 | . . . 4 2 Power 1 | . . . 1 . Propulsion 1 | . . . . 1 Utility 2 | . . . 1 1 Weapon 2 | . . . 2 . Highest Loss Streak 3 | . . . 3 2 To Critical Strikes . | . . . . . Average Backups 10 | 2 5 12 11 . Power . | . . . . . Propulsion 3 | 1 4 4 3 . Utility 3 | . 1 5 4 . Weapon 3 | . . 2 4 . Tool/Special . | . . . . . Unused Backups 18 | 5 1 3 9 . Power . | . . . . . Propulsion 8 | 4 . 1 3 . Utility 6 | . 1 1 4 . Weapon 3 | 1 . 1 1 . Tool/Special 1 | . . . 1 . Average Slot Usage (%) 92 | . 71 84 94 95 Engine 9 | . . . 11 13 Treads 20 | . 28 14 22 13 Wheel 7 | . . 13 5 13 Device 4 | . 14 14 2 . Storage 13 | . . 13 14 13 Protection 7 | . . . 8 13 Energy Gun 6 | . . . 8 . Energy Cannon 4 | . . . 4 13 Ballistic Gun 4 | . 28 21 . . Ballistic Cannon 10 | . . . 13 13 Launcher 1 | . . 6 . . Peak Build Rating 29 | 7 7 10 29 29 Average Rating 15 | 4 7 9 17 28 On Entrance 10 | . 7 7 8 29 Naked Turns 1 | . . . . 1 Heaviest Build 42 | 3 3 25 42 39 Greatest Support 40 | 3 3 10 40 10 Greatest Overweight (x) 4 | . . 2 4 3 Average Overweight (x) 1 | . . 1 1 2 Largest Inventory Capacity 15 | 5 5 15 15 15 Average Capacity 14 | 5 5 14 15 14 Most Carried 15 | 5 5 15 15 15 Average Carried 13 | 2 5 12 14 14 Final Capacity 15 | 5 5 15 15 5 Final Carried 15 | 5 5 15 15 . Class Distribution -------------------- 98% | Mutant Dominant Class ---------------- Mutant | -10/Materials Mutant | -10/Mines Mutant | -10/Subcaves Mutant | -7/Recycling Resources | -11 -10 -10 -10 -7 ----------- Run | Yrd Mat Min Sub Rec Matter Collected 1128 | 324 . 206 597 1 Remotely . | . . . . . Salvage Created 583 | 209 . 16 358 . Parts 49 | 15 . . 34 . Haulers Intercepted . | . . . . . Recyclers Shooed 1 | 1 . . . . Parts Field Recycled . | . . . . . Retrieved Matter . | . . . . . Parts Self-Destructed 23 | . . . 23 . Prevented . | . . . . . Kills | -11 -10 -10 -10 -7 ------- Run | Yrd Mat Min Sub Rec Combat Hostiles Destroyed 14 | . . 1 13 . Guns 7 | . . 1 6 . Cannons 7 | . . . 7 . Classes Destroyed 7 | 3 . 1 3 . Worker 2 | 2 . . . . Tunneler 5 | 5 . . . . Recycler 1 | 1 . . . . Turret 2 | . . . 2 . Swarmer 4 | . . . 4 . Subdweller 9 | . . . 9 . Assembled 1 | . . 1 . . Best Kill Streak 4 | 4 . 1 4 . Combat Bots Only 4 | . . 1 4 . Max Kills in Single Turn 2 | 1 . 1 2 . Gunslinging . | . . . . . Exploded . | . . . . . Melee . | . . . . . Uniques/NPCs Destroyed . | . . . . . Combat | -11 -10 -10 -10 -7 -------- Run | Yrd Mat Min Sub Rec Hostile Shots Fired 151 | . 1 4 81 65 Missed 48 | . 1 2 25 20 Hits 103 | . . 2 56 45 Melee 3 | . . . . 3 Projectile 100 | . . 2 56 42 Critical Strikes 3 | . . . 1 2 Damage Taken 1396 | . . 42 870 484 Core 254 | . . 21 81 152 Absorbed by Shields . | . . . . . Core Remaining (%) 100 | 100 . . . . Volleys Fired 108 | 37 1 8 58 4 Largest 2 | 2 2 2 2 2 Hottest 123 | 40 40 43 123 113 Shots Fired 184 | 74 2 12 88 8 Gun 127 | 74 2 8 43 . Cannon 42 | . . . 34 8 Launcher 15 | . . 4 11 . Special . | . . . . . Kinetic 122 | 74 2 8 34 4 Thermal 47 | . . . 43 4 Explosive 15 | . . 4 11 . Electromagnetic . | . . . . . Robot Hit Streak 10 | 10 . 3 7 8 Robot Miss Streak 3 | 2 2 3 3 2 Penetration Max 1 | . . . 1 . Secondary Targets . | . . . . . Shots Hit Robots 93 | 47 . 5 35 6 Core Hits 49 | 17 . 3 28 1 Critical Kills 4 | . . . 4 . Critical Parts Destroyed 2 | 1 . . 1 . Critical Strikes 9 | 1 . . 8 . Burn 1 | . . . 1 . Destroy 8 | 1 . . 7 . Melee Attacks . | . . . . . Impact . | . . . . . Slashing . | . . . . . Piercing . | . . . . . Sneak Attacks . | . . . . . Combat Hostiles . | . . . . . Follow-up Attacks . | . . . . . Damage Inflicted 1599 | 391 10 49 997 152 Guns 895 | 391 10 49 445 . Cannons 529 | . . . 377 152 Explosions 175 | . . . 175 . Melee . | . . . . . Ramming . | . . . . . Kinetic 893 | 391 10 49 377 66 Thermal 531 | . . . 445 86 Explosive 175 | . . . 175 . Electromagnetic . | . . . . . Impact . | . . . . . Slashing . | . . . . . Piercing . | . . . . . Highest Corruption 1 | . . . . 1 Average Corruption 1 | . . . . 1 Corruption Purged . | . . . . . Corruption Blocked . | . . . . . Overload Shots . | . . . . . Overflow Damage . | . . . . . Projectiles . | . . . . . Explosions . | . . . . . Melee . | . . . . . Knockbacks 3 | . . . 3 . Impact . | . . . . . Kinetic 3 | . . . 3 . Secondary . | . . . . . Self-Inflicted Damage 41 | . . 8 33 . Shots 3 | . . 1 2 . Rammed . | . . . . . Targets Rammed . | . . . . . Kicked . | . . . . . Crushed . | . . . . . Highest Temperature 212 | . . . 60 212 Average Temperature 47 | . . . 19 134 Received Heat Transfer 222 | . . . 150 72 Effects 1 | . . . . 1 Interference 1 | . . . . 1 Siege Activations . | . . . . . Martial Activations . | . . . . . Shielding Activations . | . . . . . Robots Disrupted . | . . . . . Combat Hostiles . | . . . . . Robots Corrupted . | . . . . . Combat Hostiles . | . . . . . Parts Fried . | . . . . . Impact Corruptions . | . . . . . Robots Melted . | . . . . . Combat Hostiles . | . . . . . Parts Melted . | . . . . . Heat Transferred 807 | . . . 696 111 Parts Sabotaged . | . . . . . Parts Stolen . | . . . . . Parts Stripped . | . . . . . Power Chain Reactions . | . . . . . Alert | -11 -10 -10 -10 -7 ------- Run | Yrd Mat Min Sub Rec Maximum Alert Level . | . . . . . Low Security (%) 100 | 100 100 100 . 100 Level 1 . | . . . . . Level 2 . | . . . . . Level 3 . | . . . . . Level 4 . | . . . . . Level 5 . | . . . . . High Security . | . . . . . Max Security . | . . . . . Peak Influence 66 | 5 21 15 . 66 Initial 52 | . 3 9 . 52 Average 7 | 1 10 1 . 26 Influence Increases 467 | 40 36 31 315 45 Destroy 0b10 Robot/C 120 | . . . 120 . Destroy 0b10 Robot/NC 40 | 40 . . . . Successful Hack 20 | . 6 . . 14 Select Force Hacks 30 | . . . . 30 Destroy Structure 32 | . . 31 . 1 Partial Spotted 15 | . 15 . . . Lose Combat Pursuer 210 | . 15 . 195 . Influence Decreases 467 | 35 15 47 216 154 Entered New Map 82 | . 2 17 6 57 Time Decay 354 | 35 13 30 180 96 Lost Part 31 | . . . 30 1 Squads Dispatched 2 | . 2 . . . Investigation 1 | . 1 . . . Extermination . | . . . . . Reinforcement 1 | . 1 . . . Assault . | . . . . . Garrison . | . . . . . Intercept . | . . . . . Searches Triggered . | . . . . . Construction Impeded . | . . . . . Haulers Reinforced . | . . . . . Active Scanning Responses . | . . . . . Cargo Convoy Interrupts . | . . . . . Stealth | -11 -10 -10 -10 -7 --------- Run | Yrd Mat Min Sub Rec Distress Signals . | . . . . . Communications Jammed . | . . . . . Distress Signals . | . . . . . Times Spotted 24 | . 3 1 16 4 Peak Tracking Total 6 | . 3 1 6 4 Tactical Retreats 5 | . 1 . 4 . Traps | -11 -10 -10 -10 -7 ------- Run | Yrd Mat Min Sub Rec Traps Triggered . | . . . . . Indirectly . | . . . . . Trap Hack Attempts . | . . . . . Triggered . | . . . . . Disarmed . | . . . . . Reprogrammed . | . . . . . Reused . | . . . . . Traps Extracted . | . . . . . Installed . | . . . . . Triggered . | . . . . . Machines | -11 -10 -10 -10 -7 ---------- Run | Yrd Mat Min Sub Rec Machines Disabled 3 | . . . 3 . Max in Single Turn 3 | . . . 3 . Machines Repaired . | . . . . . Machines Dismantled . | . . . . . Machines Sabotaged . | . . . . . Overloaded Fab Kills . | . . . . . Hacking | -11 -10 -10 -10 -7 --------- Run | Yrd Mat Min Sub Rec Machines Accessed 6 | . 1 . 2 3 Terminals 3 | . 1 . . 2 Fabricators . | . . . . . Repair Stations . | . . . . . Recycling Units 1 | . . . . 1 Scanalyzers . | . . . . . Garrison Access . | . . . . . Total Hacks 17 | . 4 . 3 10 Successful 8 | . 1 . 3 4 Failed 9 | . 3 . . 6 Catastrophic 2 | . 1 . . 1 Database Lockouts . | . . . . . Manual 7 | . 5 . . 2 Terminals 12 | . 4 . . 8 Fabricators . | . . . . . Repair Stations . | . . . . . Recycling Units 2 | . . . . 2 Scanalyzers . | . . . . . Garrison Access . | . . . . . Terminal Hacks 6 | . 1 . 3 2 Record 1 | . . . 1 . Part Schematic 2 | . . . . 2 Robot Analysis 1 | . 1 . . . Open Door 1 | . . . 1 . Release Object 1 | . . . 1 . Fabricator Hacks . | . . . . . Repair Station Hacks . | . . . . . Recycling Unit Hacks 1 | . . . . 1 Retrieve Components 1 | . . . . 1 Scanalyzer . | . . . . . Garrison Access Hacks . | . . . . . Unauthorized Hacks 1 | . . . . 1 Terminals . | . . . . . Fabricators . | . . . . . Repair Stations . | . . . . . Recycling Units 1 | . . . . 1 Tunnel 1 | . . . . 1 Scanalyzers . | . . . . . Garrison Access . | . . . . . Data Cores Recovered . | . . . . . Used . | . . . . . Hacking Detections 3 | . 1 . . 2 Full Trace Events 3 | . 1 . . 2 Feedback Events . | . . . . . Feedback Blocked . | . . . . . Robot Schematics Acquired . | . . . . . Robots Built . | . . . . . Authchips . | . . . . . Time . | . . . . . Total Robot Build Rating . | . . . . . Part Schematics Acquired 2 | . . . . 2 Parts Built . | . . . . . Authchips . | . . . . . Time . | . . . . . Total Part Build Rating . | . . . . . Parts Repaired . | . . . . . Time . | . . . . . Parts Recycled . | . . . . . Recycled Matter . | . . . . . Retrieved Matter . | . . . . . Retrieved Components 3 | . . . . 3 Parts Scanalyzed . | . . . . . Part Schematics Acquired . | . . . . . Parts Damaged . | . . . . . Bothacking | -11 -10 -10 -10 -7 ------------ Run | Yrd Mat Min Sub Rec Used RIF Installer . | . . . . . Robots Hacked . | . . . . . Non-combat . | . . . . . Combat . | . . . . . Robot Hacks Applied . | . . . . . Relay Couplers Released . | . . . . . Fabnet Peak Effective % . | . . . . . Robots Rewired . | . . . . . Allies Hacked . | . . . . . Hacks Repelled . | . . . . . Allies | -11 -10 -10 -10 -7 -------- Run | Yrd Mat Min Sub Rec Total Allies . | . . . . . Largest Group . | . . . . . Highest-Rated Group . | . . . . . Highest-Rated Ally . | . . . . . Total Orders . | . . . . . Ally Attacks . | . . . . . Total Damage . | . . . . . Kills . | . . . . . Allies Corrupted . | . . . . . Allies Melted . | . . . . . Intel | -11 -10 -10 -10 -7 ------- Run | Yrd Mat Min Sub Rec Active Infowar (turns) 1049 | 70 47 572 360 . Terrain 575 | 70 47 458 . . Structural 474 | . . 114 360 . Robot Analysis Total 1 | . 1 . . . Derelict Logs Recovered 4 | . . 1 3 . Drone Launches . | . . . . . Drone Recoveries . | . . . . . Exploration | -11 -10 -10 -10 -7 ------------- Run | Yrd Mat Min Sub Rec Turns Passed 3149 | 197 47 574 2106 225 Spaces Moved 2032 | 157 88 482 1136 169 Core 263 | 157 88 15 . 3 Treads 610 | . . . 610 . Legs . | . . . . . Wheels 1159 | . . 467 526 166 Hover . | . . . . . Flight . | . . . . . Fastest Speed 50 | 50 50 50 120 50 Average Speed 131 | 50 50 108 159 123 Slowest Speed 250 | 50 50 110 250 125 Overloaded Moves . | . . . . . Propulsion Burnouts . | . . . . . Robots Hopped . | . . . . . Potential Cave-ins . | . . . . . Cave-ins Triggered . | . . . . . Exploration Rate (%) 44 | 5 31 96 44 46 Regions Visited 4 Branch Regions 3 Pre-discovered Areas 3 | . . . 2 1 Known Exits Taken . | . . . . . Unknown Exits Taken 4 | 1 1 1 1 . Scrap Searched 2 | . . 2 . . Spaces Dug 25 | . . 25 . . Terrain Destroyed 77 | . . 30 46 1 Melee . | . . . . . Projectile 11 | . . . 10 1 AOE 66 | . . 30 36 . Terrain Rammed . | . . . . . Walls Destroyed . | . . . . . Machines Disabled . | . . . . . Actions | -11 -10 -10 -10 -7 --------- Run | Yrd Mat Min Sub Rec Total 2350 | 216 90 525 1342 177 Wait 100 | . . 8 90 2 Move 2028 | 156 87 481 1135 169 Hop . | . . . . . Pick Up 37 | 12 1 16 8 . Fast Attach 12 | 4 . 1 6 1 Attach 4 | 1 . 1 2 . Detach . | . . . . . Swap 22 | . . 4 18 . Drop 39 | 6 1 6 25 1 Fire 108 | 37 1 8 58 4 Melee . | . . . . . Ram . | . . . . . Kick . | . . . . . Crush . | . . . . . Escape Stasis . | . . . . . Rewire . | . . . . . Trap . | . . . . . Miscellaneous . | . . . . . Route ------- -11/Scrapyard -10/Materials -10/Mines (discovered 3 exits: [*Mat x2] / *Sub) -10/Subcaves (discovered 2 exits: *Rec / [*Scr]) -7/Recycling History --------- Turn | Location | Event 9 | -11/Scrapyard | Discovered new exit (range 16) 198 | -11/Scrapyard | Entered Materials 234 | -10/Materials | Discovered new exit (range 9) 245 | -10/Materials | Entered Mines 246 | -10/Mines | Assembled infested the area 249 | -10/Mines | Joined a pair of Derelicts in attacking an 0b10 outpost 251 | -10/Mines | Assisted by a Guerilla fighting off Assembled 316 | -10/Mines | Build established: Mutant 328 | -10/Mines | Discovered new exit (range 13) 528 | -10/Mines | Learned Materials non-interactive machine intel 617 | -10/Mines | Discovered new exit (range 13) 737 | -10/Mines | Discovered new exit (range 9) 745 | -10/Mines | Received a Rocket Launcher from a helpful Derelict 819 | -10/Mines | Entered Subcaves 820 | -10/Subcaves | Approached by a straggling Scientist 1010 | -10/Subcaves | Learned location of Zion (-6) 1076 | -10/Subcaves | Shifting Twisted Machinery released Sub. Power Source 1083 | -10/Subcaves | Shifting Twisted Machinery released Sub. Optics 1346 | -10/Subcaves | Learned Materials emergency access door positions 1347 | -10/Subcaves | Met a Zionite searching for "candidates" 1600 | -10/Subcaves | Shifting Twisted Machinery released Flamer 1615 | -10/Subcaves | Shifting Twisted Machinery released Spk. Treads 1746 | -10/Subcaves | Learned 4 Materials zone layouts 1784 | -10/Subcaves | Scientist uncovered a shortcut to Scraptown 1936 | -10/Subcaves | A swath of the cavern ceiling suddenly collapsed 2006 | -10/Subcaves | Discovered new exit (range 14) 2207 | -10/Subcaves | Lost 3 parts (1p1u1w) 2589 | -10/Subcaves | Found SUBCON Basin 2925 | -10/Subcaves | Entered Recycling 3143 | -7/Recycling | Core integrity fell below 50% 3147 | -7/Recycling | Core integrity fell below 20% 3149 | -7/Recycling | Released all parts (4) 3150 | -7/Recycling | Destroyed by S-27 Virus with Autogun Last Messages --------------- Shock Absorption System Med. Reflective Plating >>Force(Tunnel) DISCOVERED[-5/Factory] 03092_ Sub. Power Source shoots sparks and powers down. 03135_ Y-54 Guardian springs to life. 03142_ Acquired 1 matter. 03144_ Wheel severed. 03144_ Acquired Wheel. 03145_ Wheel destroyed. 03148_ U-05 Engineer builds a Wall. 03148_ Lgt. Armor Plating destroyed. 03148_ Dropped Lrg. Storage Unit. 03149_ Overheating: System interference. 03149_ Battle Cannon temporarily disabled. 03149_ Released Sub. Beam Cannon. 03149_ Released Spk. Treads. 03149_ Released Battle Cannon. 03149_ Released Broken Sub. Power Source. Map ----- +----------------------------------------------------+ | ?????????????#####"Y"#######?????????????????????? | | ?????????????# ! ! # #?????????????????????? | | ?????????????# """!""" # #?????????????????????? | | ?????????????# """ "T" # #???????????######????? | | ?????????????# """ # #???????????# #????? | | ?????????????# # #???????????# #????? | | ?????????????# + ###?????????# #????? | | ?????????????# # //#??##?????# #??### | | ?????????????# # //#### ####?# #??# | | ?????????????########### / # #?# #??# | | ???????????????????????# ### #?# #??# | | ??????????????########## #?# #?# ##?# ! | | ??????????????# # #?# #?# ??# | | ??????????????# # #?# #?# #??# | | ??????????????# # ### #?# #??# | | ??????????????# % ! # ""# #?# #??#= | | ??????????????# ! !+ Y"# #?# #??# | | ??????????????# !# ""# #####+####### | | ??????????????# #r ### # | | ??????????????# # #?# + | | ??????????????# # #?# # | | ??????????????#### ##### #?# # | | ?????????????????##????# #?# # | | ???????????????????????# r #?# # | | ???????????????????????# #?# # | | ????????????????????##?# @ #?# # | | ??????????????##"Y"## ## uu### # | | ??????? + %=l& ### # | | ??????????????#### *]] r r / # | | ?????????????????# ### + | | ?????????????????# s p #?##### #### ||## | | ?????????????????#+######+##?????###??#|||## ### | | ???????????????? ?????? ]???????????###### #?# | | ??????????????? %|??????? ??????????????? ?# | | ??????????????# ???????? / ?????????????? ?# | | ??????????????# ????????? !????????????# ## | | ??????????????#?????????? ???????????#####? | | ?????????????????????????* *????????????????## | | ?????????????????????????? *?????????????????? | | ??????????????????????????######?????????????????? | | ?????????????????????????????????????????????????? | | ?????????????????????????????????????????????????? | | | | | | | | | | | | | | | | | +----------------------------------------------------+ Best States ------------- Heat Dissipation 25 Energy Generation 15 Energy Capacity 200 Matter Stores 300 Matter Capacity 300 Sight Range 16 Terrain Scan Range 16 Terrain Scan Density 10 Armor Coverage 150 Evasion (%) 50 Recoil Reduction 2 Item Schematics ----------------- Adv. Cooling System | -7/Recycling | Hacked Enh. Gauss Cannon | -7/Recycling | Hacked Robot Schematics ------------------ None Fabricated ------------ Nothing Repaired ---------- Nothing Alien Tech Used ----------------- None Achievements -------------- None Challenges ------------ None Game ------ Seed PoweredArcsightFlamer Manual? 0 Play Time 00:18:53 Cumulative 215.8 hours Start 2025.05.31 @ 12:54:28 End 2025.05.31 @ 13:28:02 Sessions 2 Manual Loads 0 Difficulty Rogue Special Mode None Game No. 228 Rogue 228 Adventurer 0 Explorer 0 Win Type - Total 1 Types 1/0/0/0/0/0/0/0/0/0 Lore% 74 Gallery% 73 Achievement% 64 Wizard Run 0 Options --------- Layout 1 ASCII 0 Keyboard 0 Movement Numpad Keybinds 0 Fullscreen 1 Font 24/Smallcaps Map View 50x35 Zoom Use 0% Tactical HUD 1 Map Filters NONE Filters NONE Steam 1 RUN: 2a65e248-b41b-4a44-824c-91f526d69843